Cogmind - Beta 13 @@@ ROGUE MODE // 2024.05.21 @ 05:49:41 Player: CatPlusPlus Result: Destroyed by S-43 Plague with Heavy Machine Gun Performance ------------- Evolutions (7) 3500 Regions Visited (28) 5600 Robots Destroyed (364) 1820 Value Destroyed (13127) 13127 Prototype IDs (70) 1400 Alien Tech Used (0) 0 Bonus (10233) 10233 TOTAL SCORE: 35680 Bonus ------- High Alert Combat Kills 916 Follower Combat Kills 2612 Entered Garrisons 200 Network Hubs Disabled 200 Aligned with FarCom 300 Met Imprinter 300 Destroyed Z-Imprinter 1000 Triggered Deep Caves Wall 500 Exposed GOLEM Chamber 500 Acquired ECA 300 Met Warlord at Base 500 MAIN.C Attacked Warlord 500 Warlord Defense Kills 3098 Built Enhanced Grunts 300 A7 Reached Mainframe 300 Friendly Fire -1293 Cogmind --------- Core Integrity 0/1300 Matter 182/300 Energy 49/100 System Corruption 12% Temperature Cool (30) Movement Core (2000) Ox39 Location -3/Research Parts ------- > --- POWER (3) -------- Assembled Flux Generator > --- PROPULSION (4) --- (None) > --- UTILITY (12) ----- Huge Storage Unit Advanced Terrain Scan Processor > --- WEAPON (2) ------- (None) > --- INVENTORY (25) --- Flexi-carbon Leg Scrap Engine Advanced Cooling System Zionite Biocell (600) Zionite Biocell (423) Advanced Signal Interpreter Long-range Terrain Scanner Hacking Drone Bay (1/1) GOLEM Unit Improved Remote Datajack Improved Plasma Cutter Peak State ------------ > --- POWER ------------ Zionite Light DM Reactor Assembled Flux Generator > --- PROPULSION ------- Flexi-carbon Leg Flexi-carbon Leg Assembled Alloy Leg Assembled Alloy Leg > --- UTILITY ---------- Assembled Nanovents Assembled Nanovents Assembled Nanovents Huge Storage Unit Assembled Biocell Array Assembled Suspension Frame Advanced Terrain Scan Processor Assembled Combat Suite Assembled Alloy Armor Experimental Thermal Shield GOLEM Unit > --- WEAPON ----------- Assembled Focal Cannon Assembled Focal Cannon > --- INVENTORY -------- Flexi-carbon Leg Scrap Engine Advanced Cooling System Zionite Biocell Zionite Biocell Zionite Biocell Advanced Signal Interpreter Long-range Terrain Scanner Hacking Drone Bay GOLEM Unit GOLEM Unit Proton Cannon Advanced Plasma Cannon Neutron Cannon Nova Cannon Vortex Driver Vortex Driver Heavy Battle Rifle Smartbomb Launcher Improved Remote Datajack Improved Plasma Cutter [Rating: 181] Favorites ----------- Power Assembled Flux Generator Engine Improved Ion Engine Power Core Micro Nuclear Core Reactor Assembled Flux Generator Propulsion Assembled Alloy Leg Treads Armored Medium Treads Leg Assembled Alloy Leg Wheel Armored Wheel Hover Unit Zionite Glidesys I Utility Huge Storage Unit Device Assembled Nanovents Storage Huge Storage Unit Processor Advanced Signal Interpreter Protection Assembled Alloy Armor Weapon Assembled Focal Cannon Energy Gun Force Rifle Energy Cannon Assembled Focal Cannon Ballistic Gun Heavy Assault Rifle Launcher Precision Grenade Launcher Special Weapon Improved Plasma Cutter Impact Weapon Heavy Flail Build | -11 -10 -10 -9 -9 -9 -8 -8 -8 -8 -6 -6 -6 -6 -6 -6 -6 -5 -5 -5 -5 -5 -5 -4 -4 -4 -4 -3 -3 ------- Run | Yrd Mat Min Mat Min Exi Min Mat Sto Rec Fac Gar Fac Low Low Zio Dee Pro Fac Ext Cet Arc Hub Fac Upp Upp War Pro Res Slots Evolved 14 | . . . 2 . . . 2 . . 4 . . . . . . . 2 . . . . 2 . . . . 2 Power 2 | . . . . . . . . . . 1 . . . . . . . . . . . . . . . . . 1 Propulsion 2 | . . . 1 . . . . . . 1 . . . . . . . . . . . . . . . . . . Utility 10 | . . . 1 . . . 2 . . 2 . . . . . . . 2 . . . . 2 . . . . 1 Weapon . | . . . . . . . . . . . . . . . . . . . . . . . . . . . . . Parts Attached 411 | 8 20 . 45 6 4 2 25 32 8 34 22 26 4 6 6 55 6 4 14 5 3 10 15 5 1 11 1 33 Power 29 | 1 4 . 6 . . . 1 3 . 3 1 1 . . . 5 . . . . . . 2 . . . . 2 Engine 17 | 1 4 . 6 . . . . 1 . 2 1 1 . . . 1 . . . . . . . . . . . . Core 5 | . . . . . . . 1 2 . 1 . . . . . . . . . . . . . . . . . 1 Reactor 7 | . . . . . . . . . . . . . . . . 4 . . . . . . 2 . . . . 1 Propulsion 66 | 2 7 . 10 1 . 1 3 4 . 3 8 1 . . 2 8 1 3 4 . 1 . 3 . . . . 4 Treads 26 | 2 3 . 3 . . . 2 2 . 1 3 . . . 1 2 . 2 4 . 1 . . . . . . . Leg 12 | . . . . . . . . . . . . . . . . 3 1 1 . . . . 3 . . . . 4 Wheel 27 | . 4 . 7 1 . 1 1 2 . 2 5 1 . . 1 2 . . . . . . . . . . . . Hover 1 | . . . . . . . . . . . . . . . . 1 . . . . . . . . . . . . Flight . | . . . . . . . . . . . . . . . . . . . . . . . . . . . . . Utility 167 | 2 2 . 14 3 . . 11 13 8 17 7 14 2 1 2 25 4 1 5 2 2 6 9 3 . 4 1 9 Device 96 | 1 1 . 7 2 . . 8 5 5 7 4 9 1 1 1 11 2 1 2 1 1 6 7 1 . 4 1 7 Storage 7 | 1 1 . . 1 . . . . . . . . . . . 3 . . . . . . 1 . . . . . Processor 7 | . . . 1 . . . 1 . . 1 1 2 . . . . . . . . . . . . . . . 1 Hackware . | . . . . . . . . . . . . . . . . . . . . . . . . . . . . . Protection 57 | . . . 6 . . . 2 8 3 9 2 3 1 . 1 11 2 . 3 1 1 . 1 2 . . . 1 Artifact . | . . . . . . . . . . . . . . . . . . . . . . . . . . . . . Weapon 149 | 3 7 . 15 2 4 1 10 12 . 11 6 10 2 5 2 17 1 . 5 3 . 4 1 2 1 7 . 18 Energy Gun 27 | 3 1 . . . . . 1 3 . 3 3 3 . . . 6 1 . . . . . . . . . . 3 Energy Cannon 39 | . . . 4 1 1 . . . . . 1 1 . 1 1 6 . . 1 2 . 2 . 1 1 5 . 11 Ballistic Gun 31 | . 5 . 6 1 . 1 4 7 . 2 . . . 1 1 . . . 1 . . . . . . . . 2 Ballistic Cannon . | . . . . . . . . . . . . . . . . . . . . . . . . . . . . . Launcher 26 | . . . 4 . 1 . 2 . . 2 2 1 1 1 . 4 . . 2 . . 1 1 1 . 1 . 2 Special Weapon 7 | . 1 . 1 . 1 . . . . . . . . . . . . . 1 1 . 1 . . . 1 . . Impact Weapon 19 | . . . . . 1 . 3 2 . 4 . 5 1 2 . 1 . . . . . . . . . . . . Slashing Weapon . | . . . . . . . . . . . . . . . . . . . . . . . . . . . . . Piercing Weapon . | . . . . . . . . . . . . . . . . . . . . . . . . . . . . . Special Melee Weapon . | . . . . . . . . . . . . . . . . . . . . . . . . . . . . . Unidentified Prototypes 23 | . . . 2 . . . . . . . 1 . . . . 15 . . . 1 . . . 1 . 3 . . Corrupted Parts 1 | . . . . . . . . . . . . . . . . . 1 . . . . . . . . . . . System Corruption 1 | . . . . . . . . . . . . . . . . . 1 . . . . . . . . . . . Parts Lost 72 | . 3 . 1 . . . . 1 2 . 6 3 . . . 2 3 . 1 . . . 2 1 . 12 . 35 Power 6 | . 1 . . . . . . . . . 1 1 . . . . . . . . . . 1 . . . . 2 Propulsion 10 | . . . . . . . . 1 . . 1 . . . . . . . . . . . . . . 3 . 5 Utility 39 | . . . 1 . . . . . 2 . 3 2 . . . 2 3 . 1 . . . 1 1 . 7 . 16 Weapon 17 | . 2 . . . . . . . . . 1 . . . . . . . . . . . . . . 2 . 12 Highest Loss Streak 21 | . 3 . 1 . . . . 1 2 . 5 2 . . . 2 2 . 1 . . . 1 1 . 6 . 21 To Critical Strikes . | . . . . . . . . . . . . . . . . . . . . . . . . . . . . . Average Slot Usage (%) 90 | . 99 100 97 99 91 100 99 99 99 98 91 91 93 93 92 78 83 88 86 82 81 82 84 86 89 87 73 76 Engine 4 | . 13 14 11 11 11 11 5 . 9 12 5 6 6 6 6 1 . . . . . . . . . . . . Core 1 | . . . . . . . 3 8 . . 6 6 6 6 6 . . . . . . . . . . . . . Reactor 2 | . . . . . . . . . . . . . . . . 10 6 5 5 5 4 5 4 5 5 5 4 7 Treads 7 | . 16 14 10 11 11 11 9 14 9 5 6 6 6 6 6 9 . 3 10 11 11 11 . . . . . . Leg 6 | . . . . . . . . . . . . . . . . 6 25 19 11 11 11 11 20 21 21 20 10 12 Wheel 8 | . 11 14 20 22 22 22 17 11 18 19 13 13 13 13 11 . . . . . . . . . . . . . Device 18 | . 14 14 17 10 11 11 17 15 16 14 17 19 19 20 19 14 19 29 22 17 17 17 26 26 26 25 25 28 Storage 9 | . 14 14 11 11 11 11 9 9 9 6 6 6 6 6 6 8 13 11 11 11 11 11 9 10 10 10 10 8 Processor 2 | . . . . . . . . . . 5 11 9 13 13 13 2 . . . . . . . . . . . 3 Protection 10 | . . . 3 11 11 11 17 20 19 18 8 7 6 6 6 10 6 5 10 11 10 11 9 12 15 14 12 5 Energy Gun 3 | . 14 14 1 . . . 4 9 9 6 12 6 . . . . 1 . . . . . . . . . . . Energy Cannon 6 | . . . 9 11 . 11 4 . . . . 1 6 5 . 7 10 11 9 9 11 10 9 10 10 8 8 7 Ballistic Gun 3 | . 12 14 10 11 . 10 7 6 9 2 . . . . . . . . 1 . . . . . . . . . Impact Weapon 1 | . . . . . 10 . 1 2 . 3 . 4 5 6 12 2 . . . . . . . . . . . . Naked Turns . | . . . . . . . . . . . . . . . . . . . . . . . . . . . . . Heaviest Build 194 | 12 90 90 101 104 104 101 114 115 120 136 136 126 127 123 127 156 166 160 173 173 173 173 177 179 173 182 189 194 Greatest Support 150 | 40 40 16 26 20 20 22 22 28 22 38 75 24 24 24 150 150 112 108 80 80 80 80 133 113 113 113 80 120 Greatest Overweight (x) 46 | 1 8 5 5 5 5 5 5 9 5 3 8 5 5 5 5 4 2 1 2 2 7 2 2 1 1 5 5 46 Average Overweight (x) 3 | . 5 5 3 5 4 4 4 6 4 3 3 4 5 4 3 . 1 1 1 2 5 2 1 1 1 1 2 1 Largest Inventory Capacity 25 | 8 25 25 25 25 25 25 25 25 25 25 25 25 25 25 25 25 25 25 25 25 25 25 25 25 25 25 25 25 Average Capacity 24 | 7 21 25 25 25 25 25 25 25 25 25 25 25 25 25 25 25 25 25 25 25 25 25 25 25 25 25 25 25 Most Carried 25 | 7 25 25 25 25 25 25 25 25 25 25 25 25 25 25 25 25 25 25 25 25 25 25 25 25 25 25 25 25 Average Carried 24 | 2 19 24 24 24 24 25 24 24 24 24 24 24 24 25 24 23 24 24 24 24 24 25 24 24 24 24 24 23 Final Capacity 25 | 8 25 25 25 25 25 25 25 25 25 25 25 25 25 25 25 25 25 25 25 25 25 25 25 25 25 25 25 25 Final Carried 25 | 7 25 25 25 25 25 25 25 25 25 25 25 25 25 25 25 25 25 25 25 25 25 25 25 24 25 24 25 13 Class Distribution -------------------- 27% | Mutant 22% | Golem 20% | Scavenger-Mutant 10% | Scavenger-Assassin 9% | Commander-Golem 6% | Scavenger-Golem Dominant Class ---------------- Mutant | -10/Materials Mutant | -10/Mines Scavenger-Mutant | -9/Materials Scavenger-Mutant | -9/Mines Mutant | -9/Exiles Scavenger-Mutant | -8/Mines Mutant | -8/Materials Mutant | -8/Storage Mutant | -8/Recycling Mutant | -6/Factory Scavenger-Mutant | -6/Garrison Scavenger-Assassin | -6/Factory Scavenger-Assassin | -6/Lower Caves Scavenger-Assassin | -6/Lower Caves Scavenger-Assassin | -6/Zion Scavenger-Mutant | -6/Deep Caves Golem | -5/Proximity Caves Golem | -5/Factory Golem | -5/Extension Golem | -5/Cetus Commander-Golem | -5/Archives Commander-Golem | -5/Hub_04(d) Golem | -4/Factory Golem | -4/Upper Caves Scavenger-Golem | -4/Upper Caves Scavenger-Golem | -4/Warlord Golem | -3/Proximity Caves Golem | -3/Research Resources | -11 -10 -10 -9 -9 -9 -8 -8 -8 -8 -6 -6 -6 -6 -6 -6 -6 -5 -5 -5 -5 -5 -5 -4 -4 -4 -4 -3 -3 ----------- Run | Yrd Mat Min Mat Min Exi Min Mat Sto Rec Fac Gar Fac Low Low Zio Dee Pro Fac Ext Cet Arc Hub Fac Upp Upp War Pro Res Matter Collected 6586 | 280 381 29 839 137 54 126 463 529 339 488 336 242 38 98 62 795 65 40 194 7 73 103 151 94 45 99 290 189 Remotely 10 | . . . . . . . . . 10 . . . . . . . . . . . . . . . . . . . Salvage Created 17188 | 177 737 16 1978 63 . 188 748 1155 1288 945 1986 649 20 51 . 854 828 169 1087 . 138 189 1196 302 72 859 279 1214 Parts 805 | 13 37 4 138 8 . 6 55 50 56 50 53 21 . 3 . 12 27 11 38 . 8 9 66 22 2 41 11 64 Haulers Intercepted 19 | . 2 . 6 . . . 2 4 . 1 . 2 . . . . . 1 1 . . . . . . . . . Recyclers Shooed 17 | . 1 . 3 . . . 1 2 8 1 . . . . . . . . 1 . . . . . . . . . Parts Field Recycled . | . . . . . . . . . . . . . . . . . . . . . . . . . . . . . Retrieved Matter . | . . . . . . . . . . . . . . . . . . . . . . . . . . . . . Parts Self-Destructed 65 | . . . . . . . . . . . . . . 3 . . 27 . . . . . . 22 2 . 11 . Prevented . | . . . . . . . . . . . . . . . . . . . . . . . . . . . . . Kills | -11 -10 -10 -9 -9 -9 -8 -8 -8 -8 -6 -6 -6 -6 -6 -6 -6 -5 -5 -5 -5 -5 -5 -4 -4 -4 -4 -3 -3 ------- Run | Yrd Mat Min Mat Min Exi Min Mat Sto Rec Fac Gar Fac Low Low Zio Dee Pro Fac Ext Cet Arc Hub Fac Upp Upp War Pro Res Combat Hostiles Destroyed 285 | . 13 . 42 3 . 2 11 16 12 10 16 5 . 3 . 45 13 . 12 . . 4 13 8 1 26 5 25 Melee 2 | . . . . . . . . . . 1 . . . . . 1 . . . . . . . . . . . . Guns 75 | . 13 . 8 1 . 1 4 16 12 4 3 3 . 1 . 2 5 . . . . . . . . . . 2 Cannons 103 | . . . 22 2 . 1 1 . . . 1 . . . . 1 8 . 11 . . 2 11 8 1 12 5 17 AOE 93 | . . . 11 . . . 5 . . 5 11 . . 2 . 38 . . . . . 2 . . . 14 . 5 Classes Destroyed 24 | 2 5 . 4 . . . . . 4 . 1 . . . . 4 1 . . . . . . . . 2 1 . Worker 17 | . 1 . 3 . . 1 2 1 2 2 . 1 . . . . . . 1 . . . 1 . . . . 2 Builder 13 | . . . 3 . . . 1 1 2 1 . 1 . . . . . . . . . . . . . . . 4 Tunneler 12 | 4 . 1 1 1 . 1 4 . . . . . . . . . . . . . . . . . . . . . Hauler 20 | . 2 . 6 . . . 2 4 1 1 . 2 . . . . . 1 1 . . . . . . . . . Recycler 22 | 1 1 . 3 . . 1 3 2 6 4 . . . . . . . . 1 . . . . . . . . . Operator 7 | . . . 1 . . . 1 . . 1 . . . . . . . . . . 4 . . . . . . . Drone 2 | . . . . . . . . . . . . . . . . . . . . . . . . . . . 2 . Watcher 23 | . 3 . 5 . . . 2 . . . . 2 . . . . . 2 1 . . 1 5 . . . . 2 Swarmer 67 | . 3 . 15 3 . . 6 2 . 7 8 . . 3 . . . . 1 . . 2 . 5 . 7 . 5 Saboteur 1 | . . . . . . . . . . . . . . . . . . . . . . . . . . 1 . . Grunt 86 | . 10 . 18 . . 2 4 7 1 . 7 2 . . . . 8 . 6 . . . 5 1 . 5 . 10 Brawler 7 | . . . . . . . . . 2 . . 1 . . . . 2 . . . . . . . . 1 1 . Duelist 4 | . . . . . . . . . 2 . . . . . . . . . . . . . . . . 1 1 . Protector 4 | . . . 1 . . . . . 2 1 . . . . . . . . . . . . . . . . . . Sentry 30 | . . . 8 . . . 1 7 3 1 . . . . . . . . 1 . . 2 3 1 1 . 1 1 Demolisher 2 | . . . . . . . . . 2 . . . . . . . . . . . . . . . . . . . Hunter 6 | . . . . . . . . . . . 1 . . . . . 2 . 1 . . . . . . 2 . . Programmer 30 | . . . . . . . . . 2 2 . 2 . . . . . . 1 . . . 5 1 . 8 . 9 Behemoth 3 | . . . . . . . . . . . . . . . . . 1 . 2 . . . . . . . . . Enhanced Grunt 1 | . . . . . . . . . . . . . . . . . . . . . . . 1 . . . . . Striker 1 | . . . . . . . . . . . . . . . . . . . . . . . . . . 1 . . Z-Light 2 | . . . . . . . . . . . . . . . . 2 . . . . . . . . . . . . Decomposer 1 | . . . . . . . . . . . . . 1 . . . . . . . . . . . . . . . Assembler 2 | . . . . . . . . . . . . . . . . 2 . . . . . . . . . . . . Assembled 40 | . . . . . . . . . . . . . . . . 40 . . . . . . . . . . . . Golem 3 | . . . . . . . . . . . . . . . . 3 . . . . . . . . . . . . Best Kill Streak 41 | 2 5 1 7 3 . 2 7 5 5 7 13 2 . 3 . 41 5 2 4 . 4 3 4 4 1 16 3 13 Combat Bots Only 39 | . 5 . 6 3 . 2 3 5 3 4 13 2 . 3 . 39 5 . 2 . . 3 4 4 1 16 3 11 Max Kills in Single Turn 15 | 1 1 1 3 1 . 1 3 1 1 3 3 1 1 2 . 15 1 1 1 . 1 2 1 1 1 2 1 5 Gunslinging . | . . . . . . . . . . . . . . . . . . . . . . . . . . . . . Exploded 15 | . . . 3 . . . 3 . . 2 3 . . 2 . 15 . . . . . 2 . . . 2 . 4 Melee 1 | . . . . . . . . . . 1 . . . . . 1 . . . . . . . . . . . . Uniques/NPCs Destroyed 1 | . . . . . . . . . . . . . . . . 1 . . . . . . . . . . . . Z-Imprinter (-6/Deep Caves) Combat | -11 -10 -10 -9 -9 -9 -8 -8 -8 -8 -6 -6 -6 -6 -6 -6 -6 -5 -5 -5 -5 -5 -5 -4 -4 -4 -4 -3 -3 -------- Run | Yrd Mat Min Mat Min Exi Min Mat Sto Rec Fac Gar Fac Low Low Zio Dee Pro Fac Ext Cet Arc Hub Fac Upp Upp War Pro Res Hostile Shots Fired 1908 | . 69 . 142 16 . 7 50 88 30 51 144 41 . 9 . 69 84 . 28 7 8 31 51 49 14 257 17 646 Missed 617 | . 8 . 42 7 . 1 17 23 5 14 40 8 . 3 . 13 20 . 5 2 2 5 16 22 10 101 2 251 Damage Taken 20563 | . 741 . 1002 96 . 92 338 688 323 352 1904 635 . 66 . 1531 1289 . 424 89 150 563 794 370 79 2722 209 6106 Core 2612 | . 99 . 156 . . . 12 49 21 32 102 49 . . . 149 72 . 52 . 17 49 25 47 . 364 . 1317 Absorbed by Shields 2076 | . . . 197 . . . 134 136 76 39 . . . 25 . 50 . . 37 31 . . . . . 572 217 562 Reduced by Siege Mode 63 | . . . . . . . . . . . 22 . . . . 41 . . . . . . . . . . . . Redirected to Shielding 210 | . . . . . . . . . . . . . . . . 210 . . . . . . . . . . . . Ignored by Resistances 2307 | . . . . . . . 24 75 . 80 76 56 . . . . . . 93 24 31 114 165 79 16 511 84 879 Regen/Repaired (Parts) 1058 | . 72 . 181 . . . 95 209 . 452 . . . . . . . . . . . . . . . 49 . . Core Remaining (%) 72 | 100 . 60 . . . 61 . . 85 . . . . . . . 52 . . . . 88 . . . . 62 . Volleys Fired 1144 | 9 72 3 135 8 . 16 53 73 67 24 137 44 1 19 . 41 47 16 53 8 26 11 74 14 6 65 25 97 Largest 2 | 2 2 2 2 2 . 2 2 2 2 2 2 2 1 1 . 2 2 2 2 2 2 2 2 2 2 2 2 2 Hottest 161 | 80 100 70 100 103 . 91 91 86 86 135 143 135 85 98 . 150 85 50 123 100 123 123 123 115 115 136 50 161 Shots Fired 1800 | 15 130 4 242 16 . 33 101 139 134 39 158 74 2 19 . 77 72 21 79 16 31 19 106 28 12 80 36 117 Gun 967 | 15 129 4 146 8 . 16 67 139 134 32 136 65 . 2 . 20 19 . 18 . . . . . . . . 17 Cannon 753 | . . . 87 8 . 17 30 . . . 12 9 2 15 . 38 53 21 61 16 31 17 106 28 12 59 36 95 Launcher 74 | . . . 5 . . . 4 . . 7 10 . . 2 . 19 . . . . . 1 . . . 21 . 5 Special 6 | . 1 . 4 . . . . . . . . . . . . . . . . . . 1 . . . . . . Kinetic 424 | . 62 1 112 8 . 16 48 69 67 9 . . . 2 . . . . 18 . . . . . . . . 12 Thermal 1199 | 9 59 3 125 8 . 17 49 70 67 23 136 74 2 15 . 36 53 21 61 8 31 18 106 28 12 51 36 81 Explosive 74 | . . . 5 . . . 4 . . 7 10 . . 2 . 19 . . . . . 1 . . . 21 . 5 Electromagnetic 59 | 6 9 . . . . . . . . . 12 . . . . 22 . . . 8 . . . . . . . 2 Entropic 25 | . . . . . . . . . . . . . . . . . . . . . . . . . . 8 . 17 Phasic 19 | . . . . . . . . . . . . . . . . . 19 . . . . . . . . . . . Robot Hit Streak 22 | 2 10 9 14 3 . 12 22 15 12 10 19 8 . 1 . 21 14 5 7 5 6 8 13 11 7 10 9 19 Robot Miss Streak 12 | 2 3 1 5 3 . 3 5 3 2 2 3 3 . 4 . 2 2 1 2 2 1 1 2 2 1 1 12 3 Penetration Max 1 | . . . . . . . . . . . . . . . . . . . . . . . . . . 1 . 1 Secondary Targets 4 | . . . . . . . . 3 . . . 1 . . . . . . . . . . . . . . . . Max Gunslinging Chain 1 | . . . . . . . . 1 . . . 1 . . . . . . . . . . . . . . . . Autonomous 20 | . . . . . . . . . . . . . . . . 20 . . . . . . . . . . . . Shots Hit Robots 1111 | 7 93 3 141 8 . 18 60 93 97 26 124 45 1 1 . 48 47 8 45 12 21 11 49 20 10 26 15 82 Core Hits 719 | 6 40 1 79 4 . 7 34 35 39 28 92 14 . 3 . 107 21 3 23 2 10 10 31 9 2 57 7 55 Critical Kills 11 | . 1 . 1 . . . 1 . 1 1 2 1 . . . . . . . . . . 2 . . . . 1 Critical Parts Destroyed 15 | . 2 . 1 . . . 1 . . 1 9 1 . . . . . . . . . . . . . . . . Critical Strikes 58 | . 9 . 3 . . . 2 5 8 2 11 4 . . . . 1 . . . . . 2 . . 2 . 9 Burn 21 | . 6 . 1 . . . . 5 7 . . 2 . . . . . . . . . . . . . . . . Meltdown 5 | . . . 1 . . . 1 . . . . . . . . . . . . . . . 2 . . . . 1 Destroy 17 | . 3 . 1 . . . . . 1 1 11 . . . . . . . . . . . . . . . . . Smash 4 | . . . . . . . 1 . . 1 . 2 . . . . . . . . . . . . . . . . Sunder 10 | . . . . . . . . . . . . . . . . . . . . . . . . . . 2 . 8 Intensify 1 | . . . . . . . . . . . . . . . . . 1 . . . . . . . . . . . Melee Attacks 94 | . . . . . . . 6 11 . 20 . 20 19 10 3 5 . . . . . . . . . . . . Impact 94 | . . . . . . . 6 11 . 20 . 20 19 10 3 5 . . . . . . . . . . . . Slashing . | . . . . . . . . . . . . . . . . . . . . . . . . . . . . . Piercing . | . . . . . . . . . . . . . . . . . . . . . . . . . . . . . Sneak Attacks 10 | . . . . . . . 1 1 . 4 . 3 1 . . . . . . . . . . . . . . . Combat Hostiles . | . . . . . . . . . . . . . . . . . . . . . . . . . . . . . Follow-up Attacks . | . . . . . . . . . . . . . . . . . . . . . . . . . . . . . Damage Inflicted 42101 | 134 1020 36 3251 142 . 353 1584 1785 1767 1369 4903 1317 69 196 . 4651 2245 373 1899 454 1001 616 2321 872 476 3149 667 5451 Guns 12533 | 87 1018 36 1073 74 . 129 787 1681 1767 492 2858 958 . 22 . 551 599 . 144 . . . . . . . . 257 Cannons 18495 | . . . 1446 68 . 224 354 . . . 239 . . . . 726 1646 373 1755 454 1001 433 2066 872 476 1544 667 4151 Explosions 9933 | 47 . . 732 . . . 400 . . 530 1806 . . 174 . 3222 . . . . . 183 191 . . 1605 . 1043 Melee 1012 | . . . . . . . 43 104 . 347 . 359 69 . . 90 . . . . . . . . . . . . Ramming 128 | . 2 . . . . . . . . . . . . . . 62 . . . . . . 64 . . . . . Kinetic 3909 | . 425 . 798 74 . 129 567 677 720 148 . . . 22 . . . . 144 . . . . . . . . 205 Thermal 23803 | 91 515 36 1721 68 . 224 574 1004 1047 344 2858 958 . . . 850 1646 373 1755 324 1001 433 2188 872 476 987 667 2791 Explosive 9695 | . . . 732 . . . 400 . . 530 1806 . . 174 . 3222 . . . . . 183 . . . 1605 . 1043 Electromagnetic 1056 | 43 78 . . . . . . . . . 239 . . . . 427 . . . 130 . . 69 . . . . 70 Impact 1012 | . . . . . . . 43 104 . 347 . 359 69 . . 90 . . . . . . . . . . . . Slashing . | . . . . . . . . . . . . . . . . . . . . . . . . . . . . . Piercing . | . . . . . . . . . . . . . . . . . . . . . . . . . . . . . Entropic 1899 | . . . . . . . . . . . . . . . . . . . . . . . . . . 557 . 1342 Phasic 599 | . . . . . . . . . . . . . . . . . 599 . . . . . . . . . . . Highest Corruption 12 | . 2 2 3 3 3 3 . . . 2 . 4 1 1 1 . 1 . . . . 2 4 6 6 6 5 12 Average Corruption 2 | . 2 2 2 3 3 3 . . . 1 . 1 1 1 1 . 1 . . . . 1 2 5 6 3 5 5 Corruption Purged 7 | . . . . . . . . . . 3 . 4 . . . . . . . . . . . . . . . . Corruption Blocked . | . . . . . . . . . . . . . . . . . . . . . . . . . . . . . Effects 179 | . 2 8 17 14 10 13 . . . 10 . 6 3 5 . . . . . . . . 5 21 10 11 29 15 Message Errors 54 | . 1 2 2 5 4 4 . . . 2 . 1 1 1 . . . . . . . . 2 7 6 3 9 4 Matter Fused 46 | . 1 2 5 4 1 5 . . . 3 . 2 1 2 . . . . . . . . 2 7 3 2 5 1 Heat Flow Errors 16 | . . . 1 2 2 1 . . . 2 . . . 1 . . . . . . . . . . . . 5 2 Energy Discharges 17 | . . 2 5 1 2 1 . . . . . . . . . . . . . . . . . 1 . 2 . 3 Parts Fused 3 | . . . . 1 . . . . . . . . . . . . . . . . . . . 1 . . 1 . Data Loss (minor) 20 | . . 1 1 1 1 . . . . . . 1 . 1 . . . . . . . . 1 2 . 2 6 3 Data Loss (major) 10 | . . 1 . . . 1 . . . 1 . . . . . . . . . . . . . 2 1 . 2 2 Misfires 7 | . . . 1 . . 1 . . . 2 . 1 1 . . . . . . . . . . 1 . . . . Alerts 1 | . . . . . . . . . . . . 1 . . . . . . . . . . . . . . . . Weapon Failures 5 | . . . 2 . . . . . . . . . . . . . . . . . . . . . . 2 1 . Overload Shots . | . . . . . . . . . . . . . . . . . . . . . . . . . . . . . Overflow Damage 1632 | 3 . . 21 . . . 60 64 . 192 81 195 65 . . 249 59 10 99 . 97 . 75 4 . 68 51 239 Projectiles 759 | . . . 11 . . . 17 . . . . . . . . 117 59 10 99 . 97 . 63 4 . 68 51 163 Explosions 318 | 3 . . 10 . . . . . . 34 81 . . . . 102 . . . . . . 12 . . . . 76 Melee 555 | . . . . . . . 43 64 . 158 . 195 65 . . 30 . . . . . . . . . . . . Knockbacks 2 | . . . . . . . . 1 . . . . . . . 1 . . . . . . . . . . . . Impact 2 | . . . . . . . . 1 . . . . . . . 1 . . . . . . . . . . . . Kinetic . | . . . . . . . . . . . . . . . . . . . . . . . . . . . . . Secondary . | . . . . . . . . . . . . . . . . . . . . . . . . . . . . . Self-Inflicted Damage 373 | . 1 . 21 . . . 35 . . . 36 . . . . 141 . . . . . . 67 . . 43 . 29 Shots 10 | . . . 1 . . . 1 . . . 1 . . . . 3 . . . . . . 2 . . 1 . 1 Rammed 8 | . 1 . . . . . . . . . . . . . . 7 . . . . . . . . . . . . Targets Rammed 10 | . 1 . . . . . . . . . . . . . . 7 . . . . . . 2 . . . . . Kicked 2 | . . . . . . . . . . . . . . . . . . . . . . . 2 . . . . . Crushed . | . . . . . . . . . . . . . . . . . . . . . . . . . . . . . Highest Temperature 450 | 36 264 10 342 158 252 222 12 11 24 263 338 180 4 247 . 450 263 . . . . . 16 . . . 200 239 Average Temperature 65 | 18 60 6 61 61 118 124 5 3 12 49 103 64 3 36 . 91 67 . . . . . 11 . . . 91 59 Received Heat Transfer 4367 | . 438 . 284 36 . 54 158 299 82 30 567 162 . . . 110 730 . 138 13 18 63 143 9 45 215 4 769 Effects 4 | . 1 . . . . . . . . . 3 . . . . . . . . . . . . . . . . . Shutdowns 1 | . . . . . . . . . . . 1 . . . . . . . . . . . . . . . . . Energy Bleed 1 | . 1 . . . . . . . . . . . . . . . . . . . . . . . . . . . Interference 2 | . . . . . . . . . . . 2 . . . . . . . . . . . . . . . . . Siege Activations 7 | . . . . . . . . . . . 1 . . . . 6 . . . . . . . . . . . . Total Turns 71 | . . . . . . . . . . . 10 . . . . 61 . . . . . . . . . . . . Longest Duration 16 | . . . . . . . . . . . 10 . . . . 16 . . . . . . . . . . . . Robots Corrupted 3 | . . . . . . . . . . . . . . . . 3 . . . . . . . . . . . . Combat Hostiles 3 | . . . . . . . . . . . . . . . . 3 . . . . . . . . . . . . Parts Fried 12 | . . . . . . . 1 3 . 3 . 4 . . . . . . . . . . 1 . . . . . Impact Corruptions 23 | . . . . . . . 2 2 . 6 . 6 5 . . 2 . . . . . . . . . . . . Robots Melted 9 | . . . 1 . . . 1 . . . 1 2 . . . . . . 1 . . . 2 . . . . 1 Combat Hostiles 9 | . . . 1 . . . 1 . . . 1 2 . . . . . . 1 . . . 2 . . . . 1 Parts Melted 52 | . 3 . 8 . . 2 2 7 3 . 4 8 . . . . 2 . 1 . . . 5 . . 2 . 5 Heat Transferred 27331 | 150 1866 111 3367 111 . 407 1036 2257 2596 537 4477 1665 . . . 817 775 200 1000 175 625 400 1875 225 150 375 375 1759 Parts Sabotaged . | . . . . . . . . . . . . . . . . . . . . . . . . . . . . . Parts Stolen . | . . . . . . . . . . . . . . . . . . . . . . . . . . . . . Parts Stripped . | . . . . . . . . . . . . . . . . . . . . . . . . . . . . . Power Chain Reactions 3 | 1 . . . . . . . . . . . . . . . . . . . . . . 2 . . . . . Alert | -11 -10 -10 -9 -9 -9 -8 -8 -8 -8 -6 -6 -6 -6 -6 -6 -6 -5 -5 -5 -5 -5 -5 -4 -4 -4 -4 -3 -3 ------- Run | Yrd Mat Min Mat Min Exi Min Mat Sto Rec Fac Gar Fac Low Low Zio Dee Pro Fac Ext Cet Arc Hub Fac Upp Upp War Pro Res Peak Influence 1060 | 25 244 13 745 358 . 85 262 286 131 531 665 429 . . . . . 42 537 398 412 1060 675 . . . . 632 Initial 500 | . 16 13 1 249 . . . 87 21 500 221 348 . . . . . . 14 300 159 . 496 . . . . 300 Average 214 | 15 61 7 354 262 . 20 95 141 55 290 519 326 . . . . . 22 148 385 121 539 387 . . . . 454 Maximum Alert Level 3 | . 1 . 3 1 . . 1 1 . 2 2 2 . . . . . . 2 1 2 3 2 . . . . 2 Low Security (%) 53 | 100 97 100 32 23 . 100 80 76 100 15 . . . . . . . 100 75 . 63 26 2 . . . . . Level 1 27 | . 2 . 18 76 . . 19 23 . 65 25 94 . . . . . . 15 100 22 . 48 . . . . 34 Level 2 17 | . . . 43 . . . . . . 19 74 5 . . . . . . 8 . 14 31 48 . . . . 65 Level 3 1 | . . . 5 . . . . . . . . . . . . . . . . . . 40 . . . . . . Level 4 . | . . . . . . . . . . . . . . . . . . . . . . . . . . . . . Level 5 . | . . . . . . . . . . . . . . . . . . . . . . . . . . . . . High Security . | . . . . . . . . . . . . . . . . . . . . . . . . . . . . . Max Security . | . . . . . . . . . . . . . . . . . . . . . . . . . . . . . Squads Dispatched 49 | . 4 . 7 1 . 1 4 4 . 5 . 3 . . . . . . 3 . . 7 7 . . . . 3 Investigation 10 | . 2 . 3 1 . 1 . . . 1 . . . . . . . . . . . 1 1 . . . . . Extermination 10 | . . . . . . . . . . 3 . 1 . . . . . . . . . 1 3 . . . . 2 Reinforcement 19 | . 2 . 3 . . . . 1 . 1 . 2 . . . . . . 2 . . 5 3 . . . . . Assault 3 | . . . 1 . . . . . . . . . . . . . . . 1 . . . . . . . . 1 Garrison 7 | . . . . . . . 4 3 . . . . . . . . . . . . . . . . . . . . Intercept . | . . . . . . . . . . . . . . . . . . . . . . . . . . . . . Searches Triggered 1 | . . . . . . . . . . 1 . . . . . . . . . . . . . . . . . . Construction Impeded 3 | . . . . . . . . . . . . 1 . . . . . . 1 . . 1 . . . . . . Haulers Reinforced 2 | . . . . . . . . . . . . . . . . . . . . . . 2 . . . . . . Active Scanning Responses . | . . . . . . . . . . . . . . . . . . . . . . . . . . . . . Cargo Convoy Interrupts . | . . . . . . . . . . . . . . . . . . . . . . . . . . . . . Stealth | -11 -10 -10 -9 -9 -9 -8 -8 -8 -8 -6 -6 -6 -6 -6 -6 -6 -5 -5 -5 -5 -5 -5 -4 -4 -4 -4 -3 -3 --------- Run | Yrd Mat Min Mat Min Exi Min Mat Sto Rec Fac Gar Fac Low Low Zio Dee Pro Fac Ext Cet Arc Hub Fac Upp Upp War Pro Res Distress Signals 16 | . 1 . . . . . . 3 1 . . 2 . . . . . . 1 1 . 1 1 . . . . 5 Communications Jammed . | . . . . . . . . . . . . . . . . . . . . . . . . . . . . . Distress Signals . | . . . . . . . . . . . . . . . . . . . . . . . . . . . . . Times Spotted 499 | . 23 . 57 6 . 3 19 24 10 15 10 15 . 3 . 90 13 2 29 5 21 25 21 8 1 46 7 46 Peak Tracking Total 37 | . 3 . 5 3 . 2 3 4 3 5 8 4 . 3 . 37 4 1 5 5 1 5 4 4 1 17 3 11 Tactical Retreats 18 | . . . 6 . . 1 2 . . 1 . . . . . . . . 2 . . . 1 1 . 1 . 3 Traps | -11 -10 -10 -9 -9 -9 -8 -8 -8 -8 -6 -6 -6 -6 -6 -6 -6 -5 -5 -5 -5 -5 -5 -4 -4 -4 -4 -3 -3 ------- Run | Yrd Mat Min Mat Min Exi Min Mat Sto Rec Fac Gar Fac Low Low Zio Dee Pro Fac Ext Cet Arc Hub Fac Upp Upp War Pro Res Traps Triggered 18 | . 1 . 2 . . . . 6 . . . 2 . . . . . 1 4 . . 1 1 . . . . . Indirectly . | . . . . . . . . . . . . . . . . . . . . . . . . . . . . . Trap Hack Attempts . | . . . . . . . . . . . . . . . . . . . . . . . . . . . . . Triggered . | . . . . . . . . . . . . . . . . . . . . . . . . . . . . . Disarmed . | . . . . . . . . . . . . . . . . . . . . . . . . . . . . . Reprogrammed . | . . . . . . . . . . . . . . . . . . . . . . . . . . . . . Reused . | . . . . . . . . . . . . . . . . . . . . . . . . . . . . . Traps Extracted . | . . . . . . . . . . . . . . . . . . . . . . . . . . . . . Installed . | . . . . . . . . . . . . . . . . . . . . . . . . . . . . . Triggered 14 | . . . . . . . . . . . . . . . . . . . . . . . . . . 14 . . Machines | -11 -10 -10 -9 -9 -9 -8 -8 -8 -8 -6 -6 -6 -6 -6 -6 -6 -5 -5 -5 -5 -5 -5 -4 -4 -4 -4 -3 -3 ---------- Run | Yrd Mat Min Mat Min Exi Min Mat Sto Rec Fac Gar Fac Low Low Zio Dee Pro Fac Ext Cet Arc Hub Fac Upp Upp War Pro Res Machines Disabled 37 | . . . 2 . . . 1 2 1 3 3 . . . . 1 . . 6 . 2 3 9 . . 1 . 3 Max in Single Turn 4 | . . . 1 . . . 1 1 1 1 1 . . . . 1 . . 1 . 1 . 4 . . 1 . 1 Network Hub 1 | . . . . . . . . . . . . . . . . . . . . . . 1 . . . . . . Machines Repaired . | . . . . . . . . . . . . . . . . . . . . . . . . . . . . . Machines Dismantled 3 | . . . . . . . . . . . . . . . . . . . 1 1 . 1 . . . . . . Machines Sabotaged . | . . . . . . . . . . . . . . . . . . . . . . . . . . . . . Overloaded Fab Kills . | . . . . . . . . . . . . . . . . . . . . . . . . . . . . . Hacking | -11 -10 -10 -9 -9 -9 -8 -8 -8 -8 -6 -6 -6 -6 -6 -6 -6 -5 -5 -5 -5 -5 -5 -4 -4 -4 -4 -3 -3 --------- Run | Yrd Mat Min Mat Min Exi Min Mat Sto Rec Fac Gar Fac Low Low Zio Dee Pro Fac Ext Cet Arc Hub Fac Upp Upp War Pro Res Machines Accessed 80 | . 8 . 11 1 2 1 8 7 12 12 . 6 . . . . . 2 4 . . . 1 . . 5 . . Terminals 42 | . 5 . 7 . . 1 4 6 6 6 . 3 . . . . . . 4 . . . . . . . . . Fabricators 4 | . . . . . . . . . . 2 . 1 . . . . . 1 . . . . . . . . . . Repair Stations 7 | . 1 . 1 . . . 2 1 . 1 . 1 . . . . . . . . . . . . . . . . Recycling Units 13 | . 2 . 2 . . . 1 . 6 . . 1 . . . . . 1 . . . . . . . . . . Scanalyzers 4 | . . . 1 . . . 1 . . 2 . . . . . . . . . . . . . . . . . . Garrison Access 2 | . . . . . . . . . . 1 . . . . . . . . . . . . 1 . . . . . Total Hacks 232 | . 29 . 47 1 2 2 29 21 30 31 . 11 . . . . . 2 8 . . . 5 . . 14 . . Successful 139 | . 19 . 30 1 2 . 17 11 16 20 . 7 . . . . . . 2 . . . . . . 14 . . Failed 93 | . 10 . 17 . . 2 12 10 14 11 . 4 . . . . . 2 6 . . . 5 . . . . . Catastrophic 29 | . . . 3 . . 1 2 3 5 6 . 2 . . . . . 2 3 . . . 2 . . . . . Database Lockouts . | . . . . . . . . . . . . . . . . . . . . . . . . . . . . . Manual 95 | . 10 . 23 . 1 2 10 11 14 12 . 6 . . 1 . . . 4 1 . . . . . . . . Terminals 124 | . 20 . 27 . . 2 16 16 17 11 . 7 . . . . . . 8 . . . . . . . . . Fabricators 6 | . . . . . . . . . . 4 . 1 . . . . . 1 . . . . . . . . . . Repair Stations 30 | . 3 . 6 . . . 4 5 . 10 . 2 . . . . . . . . . . . . . . . . Recycling Units 29 | . 6 . 6 . . . 2 . 13 . . 1 . . . . . 1 . . . . . . . . . . Scanalyzers 20 | . . . 8 . . . 7 . . 5 . . . . . . . . . . . . . . . . . . Garrison Access 6 | . . . . . . . . . . 1 . . . . . . . . . . . . 5 . . . . . Terminal Hacks 57 | . 11 . 10 1 2 . 5 5 4 2 . 1 . . . . . . 2 . . . . . . 14 . . Record 14 | . . . . . 1 . . . . . . . . . . . . . . . . . . . . 13 . . Part Schematic 9 | . 2 . 1 . . . 1 2 3 . . . . . . . . . . . . . . . . . . . Robot Analysis 3 | . . . 3 . . . . . . . . . . . . . . . . . . . . . . . . . Prototype ID Bank 5 | . 2 . 1 . . . . 1 1 . . . . . . . . . . . . . . . . . . . Open Door 3 | . . . . 1 . . . 1 . . . . . . . . . . . . . . . . . 1 . . Branch Access Points 3 | . . . . . . . 1 . . 1 . 1 . . . . . . . . . . . . . . . . Terminal Index 2 | . . . 1 . . . 1 . . . . . . . . . . . . . . . . . . . . . Unreport Threat 5 | . . . 3 . . . . 1 . . . . . . . . . . 1 . . . . . . . . . Locate Traps 5 | . 3 . . . . . . . . 1 . . . . . . . . 1 . . . . . . . . . Hauler Manifests 3 | . 1 . 1 . . . 1 . . . . . . . . . . . . . . . . . . . . . Registered Components 1 | . 1 . . . . . . . . . . . . . . . . . . . . . . . . . . . Zone Layout 3 | . 2 . . . . . 1 . . . . . . . . . . . . . . . . . . . . . Derelict Proto ID Bank 1 | . . . . . 1 . . . . . . . . . . . . . . . . . . . . . . . Fabricator Hacks . | . . . . . . . . . . . . . . . . . . . . . . . . . . . . . Repair Station Hacks 27 | . 2 . 6 . . . 4 4 . 10 . 1 . . . . . . . . . . . . . . . . Scan Component 14 | . 1 . 3 . . . 2 2 . 5 . 1 . . . . . . . . . . . . . . . . Repair 13 | . 1 . 3 . . . 2 2 . 5 . . . . . . . . . . . . . . . . . . Recycling Unit Hacks 10 | . 2 . 2 . . . . . 5 . . 1 . . . . . . . . . . . . . . . . Retrieve Components 10 | . 2 . 2 . . . . . 5 . . 1 . . . . . . . . . . . . . . . . Scanalyzer 18 | . . . 8 . . . 6 . . 4 . . . . . . . . . . . . . . . . . . Insert Component 9 | . . . 4 . . . 3 . . 2 . . . . . . . . . . . . . . . . . . Analyze 9 | . . . 4 . . . 3 . . 2 . . . . . . . . . . . . . . . . . . Garrison Access Hacks 1 | . . . . . . . . . . 1 . . . . . . . . . . . . . . . . . . Unlock Access 1 | . . . . . . . . . . 1 . . . . . . . . . . . . . . . . . . Unauthorized Hacks 26 | . 4 . 4 . . . 2 2 7 3 . 4 . . . . . . . . . . . . . . . . Terminals 14 | . 2 . 2 . . . 2 2 1 2 . 3 . . . . . . . . . . . . . . . . Assimilate 2 | . . . . . . . . 1 . . . 1 . . . . . . . . . . . . . . . . Botnet 12 | . 2 . 2 . . . 2 1 1 2 . 2 . . . . . . . . . . . . . . . . Fabricators 2 | . . . . . . . . . . 1 . 1 . . . . . . . . . . . . . . . . Liberate 2 | . . . . . . . . . . 1 . 1 . . . . . . . . . . . . . . . . Repair Stations . | . . . . . . . . . . . . . . . . . . . . . . . . . . . . . Recycling Units 10 | . 2 . 2 . . . . . 6 . . . . . . . . . . . . . . . . . . . Tunnel 10 | . 2 . 2 . . . . . 6 . . . . . . . . . . . . . . . . . . . Scanalyzers . | . . . . . . . . . . . . . . . . . . . . . . . . . . . . . Garrison Access . | . . . . . . . . . . . . . . . . . . . . . . . . . . . . . Data Cores Recovered 1 | . . . . . . . . . . 1 . . . . . . . . . . . . . . . . . . Used . | . . . . . . . . . . . . . . . . . . . . . . . . . . . . . Hacking Detections 60 | . 6 . 10 . . 1 8 7 6 10 . 5 . . . . . 2 4 . . . 1 . . . . . Full Trace Events 8 | . . . 1 . . 1 . . 4 1 . . . . . . . . . . . . 1 . . . . . Feedback Events 1 | . . . . . . . . . . 1 . . . . . . . . . . . . . . . . . . Corruption 1 | . . . . . . . . . . 1 . . . . . . . . . . . . . . . . . . Feedback Blocked . | . . . . . . . . . . . . . . . . . . . . . . . . . . . . . Robot Schematics Acquired 2 | . . . . . . . . . . . . . . . 2 . . . . . . . . . . . . . Robots Built . | . . . . . . . . . . . . . . . . . . . . . . . . . . . . . Authchips . | . . . . . . . . . . . . . . . . . . . . . . . . . . . . . Time . | . . . . . . . . . . . . . . . . . . . . . . . . . . . . . Total Robot Build Rating . | . . . . . . . . . . . . . . . . . . . . . . . . . . . . . Part Schematics Acquired 34 | . 2 . 5 . . . 4 2 3 2 . . . . 16 . . . . . . . . . . . . . Parts Built . | . . . . . . . . . . . . . . . . . . . . . . . . . . . . . Authchips . | . . . . . . . . . . . . . . . . . . . . . . . . . . . . . Time . | . . . . . . . . . . . . . . . . . . . . . . . . . . . . . Total Part Build Rating . | . . . . . . . . . . . . . . . . . . . . . . . . . . . . . Parts Repaired 13 | . 1 . 3 . . . 2 2 . 5 . . . . . . . . . . . . . . . . . . Time 476 | . 26 . 109 . . . 64 70 . 207 . . . . . . . . . . . . . . . . . . Parts Recycled . | . . . . . . . . . . . . . . . . . . . . . . . . . . . . . Recycled Matter . | . . . . . . . . . . . . . . . . . . . . . . . . . . . . . Retrieved Matter . | . . . . . . . . . . . . . . . . . . . . . . . . . . . . . Retrieved Components 41 | . 9 . 15 . . . . . 14 . . 3 . . . . . . . . . . . . . . . . Parts Scanalyzed 9 | . . . 4 . . . 3 . . 2 . . . . . . . . . . . . . . . . . . Part Schematics Acquired 9 | . . . 4 . . . 3 . . 2 . . . . . . . . . . . . . . . . . . Parts Damaged 2 | . . . 1 . . . . . . 1 . . . . . . . . . . . . . . . . . . Bothacking | -11 -10 -10 -9 -9 -9 -8 -8 -8 -8 -6 -6 -6 -6 -6 -6 -6 -5 -5 -5 -5 -5 -5 -4 -4 -4 -4 -3 -3 ------------ Run | Yrd Mat Min Mat Min Exi Min Mat Sto Rec Fac Gar Fac Low Low Zio Dee Pro Fac Ext Cet Arc Hub Fac Upp Upp War Pro Res Used RIF Installer . | . . . . . . . . . . . . . . . . . . . . . . . . . . . . . Robots Hacked . | . . . . . . . . . . . . . . . . . . . . . . . . . . . . . Non-combat . | . . . . . . . . . . . . . . . . . . . . . . . . . . . . . Combat . | . . . . . . . . . . . . . . . . . . . . . . . . . . . . . Robot Hacks Applied . | . . . . . . . . . . . . . . . . . . . . . . . . . . . . . Relay Couplers Released . | . . . . . . . . . . . . . . . . . . . . . . . . . . . . . Fabnet Peak Effective % . | . . . . . . . . . . . . . . . . . . . . . . . . . . . . . Robots Rewired 34 | . . . . . . . . . 13 . . . . . . . . . 16 . . . . . . 5 . . Allies Hacked . | . . . . . . . . . . . . . . . . . . . . . . . . . . . . . Hacks Repelled . | . . . . . . . . . . . . . . . . . . . . . . . . . . . . . Allies | -11 -10 -10 -9 -9 -9 -8 -8 -8 -8 -6 -6 -6 -6 -6 -6 -6 -5 -5 -5 -5 -5 -5 -4 -4 -4 -4 -3 -3 -------- Run | Yrd Mat Min Mat Min Exi Min Mat Sto Rec Fac Gar Fac Low Low Zio Dee Pro Fac Ext Cet Arc Hub Fac Upp Upp War Pro Res Total Allies 45 | . . . . 3 . . . . 13 . . . . . 2 . . . 17 5 . . . . . 5 . . Largest Group 10 | . . . . 3 2 . . . 10 4 . . . . 2 2 . . 8 7 7 6 1 . . 5 . . Highest-Rated Group 652 | . . . . 76 45 . . . 174 74 . . . . 192 192 . . 384 652 652 509 89 . . 289 . . Highest-Rated Ally 159 | . . . . 31 31 . . . 34 27 . . . . 96 96 . . 159 159 143 96 89 . . 65 . . Total Orders 8 | . . . . . . . . . . . . . . . . . . . . . . 3 3 . . . . 2 RETURN 8 | . . . . . . . . . . . . . . . . . . . . . . 3 3 . . . . 2 Ally Attacks 417 | . . . . 26 . . . . 4 17 . . . . . 48 . . 180 24 34 70 3 . . 11 . . Total Damage 11723 | . . . . 430 . . . . 49 282 . . . . . 1308 . . 3946 505 1347 3287 . . . 569 . . Kills 75 | . . . . 5 . . . . 1 2 . . . . . 9 . . 21 5 4 23 . . . 5 . . Allies Corrupted 2 | . . . . . . . . . . . . . . . . . . . . . . . . . . 2 . . Allies Melted . | . . . . . . . . . . . . . . . . . . . . . . . . . . . . . Intel | -11 -10 -10 -9 -9 -9 -8 -8 -8 -8 -6 -6 -6 -6 -6 -6 -6 -5 -5 -5 -5 -5 -5 -4 -4 -4 -4 -3 -3 ------- Run | Yrd Mat Min Mat Min Exi Min Mat Sto Rec Fac Gar Fac Low Low Zio Dee Pro Fac Ext Cet Arc Hub Fac Upp Upp War Pro Res Robot Analysis Total 3 | . . . 3 . . . . . . . . . . . . . . . . . . . . . . . . . Derelict Logs Recovered 9 | . . 2 . 1 . . . . . . . . 1 1 1 . 1 . . . . . . 1 1 . . . Drone Launches 8 | . . . . . . . . . . . . . . . . . . . . . . 3 3 . . . . 2 Drone Recoveries 8 | . . . . . . . . . . . . . . . . . . . . . . 3 3 . . . . 2 Exploration | -11 -10 -10 -9 -9 -9 -8 -8 -8 -8 -6 -6 -6 -6 -6 -6 -6 -5 -5 -5 -5 -5 -5 -4 -4 -4 -4 -3 -3 ------------- Run | Yrd Mat Min Mat Min Exi Min Mat Sto Rec Fac Gar Fac Low Low Zio Dee Pro Fac Ext Cet Arc Hub Fac Upp Upp War Pro Res Turns Passed 36274 | 195 1644 771 2426 847 501 860 1833 1731 1707 1803 922 1003 856 1057 1402 3545 1259 605 1934 355 2148 550 1732 772 366 1286 1220 944 Spaces Moved 16123 | 96 711 436 1209 504 352 522 886 596 916 972 337 451 482 595 906 1673 331 270 806 94 468 231 551 383 185 560 311 289 Core 373 | 2 . . . . . . . . . . . . . . . . . . . . 370 . . . . . . 1 Treads 1737 | 94 139 . . . . . . . . . 44 . . . 69 1391 . . . . . . . . . . . . Legs 4382 | . . . . . . . . . . . . . . . . 274 331 270 806 94 98 231 551 383 185 560 311 288 Wheels 9631 | . 572 436 1209 504 352 522 886 596 916 972 293 451 482 595 837 8 . . . . . . . . . . . . Hover . | . . . . . . . . . . . . . . . . . . . . . . . . . . . . . Flight . | . . . . . . . . . . . . . . . . . . . . . . . . . . . . . Fastest Speed 50 | 50 140 175 135 155 140 140 145 140 145 135 135 150 165 150 150 150 183 180 180 210 210 210 183 185 185 185 210 135 Average Speed 172 | 158 179 175 140 155 140 154 157 191 146 135 160 151 165 164 151 166 189 180 196 210 360 210 185 185 185 188 228 214 Slowest Speed 2350 | 160 200 175 175 155 155 155 160 225 160 135 240 165 165 165 165 400 285 183 210 210 400 210 210 185 185 300 300 2350 Overloaded Moves . | . . . . . . . . . . . . . . . . . . . . . . . . . . . . . Propulsion Burnouts . | . . . . . . . . . . . . . . . . . . . . . . . . . . . . . Robots Hopped . | . . . . . . . . . . . . . . . . . . . . . . . . . . . . . Cave-ins Triggered . | . . . . . . . . . . . . . . . . . . . . . . . . . . . . . Exploration Rate (%) 56 | 4 88 75 70 90 70 95 44 56 98 21 31 15 66 80 86 72 51 8 89 57 76 34 18 53 39 82 56 13 Regions Visited 28 Branch Regions 19 Pre-discovered Areas 15 | . 2 1 2 . 1 . . . 6 . . . 1 . 1 . 1 . . . . . . . . . . . Known Exits Taken 9 | . . . . . . . 1 . . 1 . 1 1 1 1 . . . . . . . 1 . 1 . 1 . Unknown Exits Taken 18 | 1 1 1 1 1 1 1 . 1 1 . . . . . . 1 1 1 1 1 1 1 . 1 . 1 . . Scrap Searched 15 | . . 1 . 2 . 1 . . . . . . 1 . 4 . 1 . . . . . . 2 2 . 1 . Spaces Dug 196 | . 1 . 15 . . . 4 7 . 14 5 17 19 32 2 5 2 8 6 . 1 2 25 . . 25 2 4 Terrain Destroyed 596 | 6 1 . 34 2 . . 47 7 . 46 26 20 20 36 2 8 22 13 15 1 3 18 47 7 2 110 21 82 Melee 59 | . . . . . . . 4 7 . 9 . 11 18 8 2 . . . . . . . . . . . . . Projectile 221 | . 1 . 4 2 . . . . . . 1 9 2 15 . 8 22 13 15 1 3 6 42 7 2 22 21 25 AOE 316 | 6 . . 30 . . . 43 . . 37 25 . . 13 . . . . . . . 12 5 . . 88 . 57 Terrain Rammed . | . . . . . . . . . . . . . . . . . . . . . . . . . . . . . Walls Destroyed . | . . . . . . . . . . . . . . . . . . . . . . . . . . . . . Machines Disabled . | . . . . . . . . . . . . . . . . . . . . . . . . . . . . . Actions | -11 -10 -10 -9 -9 -9 -8 -8 -8 -8 -6 -6 -6 -6 -6 -6 -6 -5 -5 -5 -5 -5 -5 -4 -4 -4 -4 -3 -3 --------- Run | Yrd Mat Min Mat Min Exi Min Mat Sto Rec Fac Gar Fac Low Low Zio Dee Pro Fac Ext Cet Arc Hub Fac Upp Upp War Pro Res Total 22736 | 121 963 444 1726 555 362 545 1217 1027 1160 1393 567 667 512 634 935 2407 894 369 1077 228 904 269 1160 417 196 705 785 497 Wait 3904 | . 106 . 238 30 . 5 213 291 17 307 31 96 3 5 9 469 502 60 8 108 397 15 496 13 . 3 441 41 Move 16096 | 95 710 435 1208 503 351 521 885 595 915 972 336 450 481 594 905 1672 330 269 805 93 467 230 550 382 184 559 310 289 Hop . | . . . . . . . . . . . . . . . . . . . . . . . . . . . . . Pick Up 260 | 7 32 3 39 2 3 . 15 8 4 17 17 13 2 . 4 52 . 6 3 3 1 . 4 2 3 3 3 14 Fast Attach 113 | 8 4 . 11 2 . . 5 11 5 6 6 5 . . 1 24 . 2 5 . 2 . 4 . . 4 1 7 Attach 71 | . 2 . 3 . 2 . 2 2 1 4 4 5 . . 1 14 2 1 4 . . . 2 3 . 3 . 16 Detach 86 | 1 1 . 1 . 1 . 1 . . . 2 3 . . 2 25 9 1 7 . 6 . 10 1 . 3 3 9 Swap 227 | . 14 . 31 4 2 2 18 19 2 24 12 16 4 6 4 17 4 1 5 5 1 10 9 2 1 4 . 10 Drop 339 | 1 21 3 60 6 3 1 19 17 8 19 22 15 2 . 6 81 . 8 8 3 4 . 9 . 2 5 2 14 Fire 1144 | 9 72 3 135 8 . 16 53 73 67 24 137 44 1 19 . 41 47 16 53 8 26 11 74 14 6 65 25 97 Melee 94 | . . . . . . . 6 11 . 20 . 20 19 10 3 5 . . . . . . . . . . . . Ram 1 | . 1 . . . . . . . . . . . . . . . . . . . . . . . . . . . Kick 2 | . . . . . . . . . . . . . . . . . . . . . . . 2 . . . . . Crush 7 | . . . . . . . . . . . . . . . . 7 . . . . . . . . . . . . Escape Stasis 25 | . . . . . . . . . . . . . . . . . . 5 20 . . . . . . . . . Rewire 348 | . . . . . . . . . 141 . . . . . . . . . 151 . . . . . . 56 . . Trap . | . . . . . . . . . . . . . . . . . . . . . . . . . . . . . Miscellaneous 19 | . . . . . . . . . . . . . . . . . . . 8 8 . 3 . . . . . . Route ------- -11/Scrapyard -10/Materials (discovered 4 exits: *Mat x2 / [*Min x2]) -10/Mines (discovered 2 exits: *Mat x2) -9/Materials (discovered 2 exits: *Mat / *Min) -9/Mines (discovered 3 exits: *Mat x2 / *Exi) -9/Exiles -8/Mines (discovered 2 exits: *Mat x2) -8/Materials (discovered 4 exits: [*Fac x2] / *Sto x2) -8/Storage -8/Recycling -6/Factory (discovered 3 exits: Low x2 / Gar) -6/Garrison -6/Factory (discovered 2 exits: *Low x2) -6/Lower Caves -6/Lower Caves -6/Zion (discovered 2 exits: *Dee / [*Pro]) -6/Deep Caves -5/Proximity Caves -5/Factory (discovered 2 exits: *Fac / *Ext) -5/Extension (discovered 2 exits: *Fac / *Cet) -5/Cetus -5/Archives (discovered 2 exits: *Fac / *Hub) -5/Hub_04(d) (discovered 2 exits: *Fac x2) -4/Factory (discovered 6 exits: Res x4 / *Upp x2) -4/Upper Caves -4/Upper Caves -4/Warlord -3/Proximity Caves -3/Research History --------- Turn | Location | Event 25 | -11/Scrapyard | Discovered new exit (range 15) 196 | -11/Scrapyard | Entered Materials 311 | -10/Materials | Build established: Mutant 517 | -10/Materials | Lost 3 parts (1p2w) 1236 | -10/Materials | Discovered new exit (range 16) 1300 | -10/Materials | Repaired Lgt. Treads 1515 | -10/Materials | Discovered new exit (range 7) 1610 | -10/Materials | Discovered new exit (range 8) 1798 | -10/Materials | Discovered new exit (range 6) 1840 | -10/Materials | Entered Mines 1881 | -10/Mines | Met a Derelict bent on vengeance 1944 | -10/Mines | Discovered new exit (range 13) 2017 | -10/Mines | Learned Materials terminal intel 2323 | -10/Mines | A weapon hastily lodged in a ceiling crevice suddenly fell to the ground 2343 | -10/Mines | Learned location of Storage (-8) 2348 | -10/Mines | Learned Materials stockpile data 2419 | -10/Mines | Discovered new exit (range 8) 2611 | -10/Mines | Entered Materials 2611 | -9/Materials | Evolved 2 slots: Propulsion x1, Utility x1 2613 | -9/Materials | Loaded intel: 12 terminal locations 3253 | -9/Materials | Discovered new exit (range 9) 3959 | -9/Materials | Discovered new exit (range 15) 4045 | -9/Materials | Build established: Scavenger-Mutant 4254 | -9/Materials | Repaired Shield Generator 4306 | -9/Materials | Repaired Adv. Beam Cannon 4333 | -9/Materials | Repaired Lgt. Treads 4611 | -9/Materials | First assault squad dispatched 5037 | -9/Materials | Entered Mines 5051 | -9/Mines | Learned Materials emergency access door positions 5265 | -9/Mines | Discovered new exit (range 10) 5281 | -9/Mines | Met a Derelict shopkeep closing up shop 5376 | -9/Mines | Received a Mining Laser from a helpful Derelict 5844 | -9/Mines | Discovered new exit (range 6) 5876 | -9/Mines | Deemed a non-threat by the Exiles lab entrance 5878 | -9/Mines | Discovered new exit (range 5) 5884 | -9/Mines | Entered Exiles 5884 | -9/Exiles | Accompanied by 2 allies 5914 | -9/Exiles | Led the pair of lost Derelicts to a safe place 5946 | -9/Exiles | Met 8R-AWN 5972 | -9/Exiles | Met EX-HEX 6045 | -9/Exiles | Met EX-DEC 6070 | -9/Exiles | Learned location of Zion (-6) 6160 | -9/Exiles | Met EX-BIN 6173 | -9/Exiles | Build established: Mutant 6202 | -9/Exiles | Aligned with FarCom system 6203 | -9/Exiles | Given EX-Vault access code 6238 | -9/Exiles | Opened EX-Vault 6248 | -9/Exiles | Found AWS/Thermal 6278 | -9/Exiles | Warned to stay clear of 0b10 Research branches 6368 | -9/Exiles | Discovered new exit (range 10) 6385 | -9/Exiles | Left Exiles lab with AWS/Thermal 6385 | -9/Exiles | Entered Mines 6691 | -8/Mines | Build established: Scavenger-Mutant 7190 | -8/Mines | Discovered new exit (range 5) 7213 | -8/Mines | Discovered new exit (range 9) 7245 | -8/Mines | Entered Materials 7245 | -8/Materials | Evolved 2 slots: Utility x2 7287 | -8/Materials | Repaired Arm. Wheel 7415 | -8/Materials | Repaired Hrd. Light Armor Plating 7512 | -8/Materials | Build established: Mutant 7657 | -8/Materials | Discovered new exit (range 15) 7674 | -8/Materials | Identified exit to Storage 8578 | -8/Materials | Discovered new exit (range 5) 8611 | -8/Materials | Garrison activated, responded to threat 8736 | -8/Materials | Garrison activated, responded to threat 9078 | -8/Materials | Entered Storage 9216 | -8/Storage | Garrison activated, responded to threat 9626 | -8/Storage | Repaired Reactive Plating? 9666 | -8/Storage | Repaired Hrd. Light Armor Plating? 10803 | -8/Storage | Used back door to open Recycling access 10803 | -8/Storage | Discovered new exit (range 5) 10809 | -8/Storage | Entered Recycling 10822 | -8/Recycling | Found Scrap Engine 11332 | -8/Recycling | Discovered new exit (range 15) 12257 | -8/Recycling | Lost 3 allies 12455 | -8/Recycling | Build established: Commander-Mutant 12496 | -8/Recycling | Murdered 5 allies 12516 | -8/Recycling | Entered Factory 12516 | -6/Factory | Accompanied by 4 allies 12516 | -6/Factory | Evolved 4 slots: Power x1, Propulsion x1, Utility x2 12866 | -6/Factory | Search patrols dispatched 13335 | -6/Factory | Repaired Broken Hvy. Rocket Launcher 13374 | -6/Factory | Repaired Hrd. Medium Armor Plating 13413 | -6/Factory | Repaired Reactive Plating 13447 | -6/Factory | Repaired Arm. Wheel 13486 | -6/Factory | Repaired Adv. Treads 13507 | -6/Factory | Build established: Mutant 14219 | -6/Factory | Identified exit to Lower Caves 14319 | -6/Factory | Identified exit to Garrison 14319 | -6/Factory | Entered Garrison 14492 | -6/Garrison | Build established: Scavenger-Mutant 14547 | -6/Garrison | Triggered checkpoint 14549 | -6/Garrison | Triggered checkpoint 14553 | -6/Garrison | Triggered checkpoint 14610 | -6/Garrison | Destroyed 13 combat bots 14639 | -6/Garrison | Lost 5 parts (1p1n2u1w) 15215 | -6/Garrison | Discovered new exit (range 15) 15240 | -6/Garrison | Identified exit to Factory 15241 | -6/Garrison | Entered Factory 16165 | -6/Factory | Build established: Scavenger-Assassin 16244 | -6/Factory | Entered Lower Caves 16249 | -6/Lower Caves | Learned Factory security intel 16408 | -6/Lower Caves | Met a Warlord Commander 16409 | -6/Lower Caves | Learned location of Warlord (-4) 16410 | -6/Lower Caves | Warlord Commander delivered Encrypted Comm Array 16410 | -6/Lower Caves | Found Encrypted Comm Array 16855 | -6/Lower Caves | Encountered a Warlord checkpoint 16908 | -6/Lower Caves | Discovered new exit (range 4) 17095 | -6/Lower Caves | Identified exit to Lower Caves 17100 | -6/Lower Caves | Entered another Lower Caves area 17317 | -6/Lower Caves | Learned Factory garrison access intel 18149 | -6/Lower Caves | Discovered new exit (range 5) 18154 | -6/Lower Caves | Identified exit to Zion 18157 | -6/Lower Caves | Entered Zion 18181 | -6/Zion | Received a visual enhancement algorithm 18255 | -6/Zion | System corruption cleaned by Quarantine Array 18334 | -6/Zion | Discovered new exit (range 17) 18534 | -6/Zion | Identified exit to Deep Caves 18778 | -6/Zion | Given the Hacking Drone Bay 18779 | -6/Zion | Found Prototype Device 18814 | -6/Zion | Learned location of Quarantine (-3) 19002 | -6/Zion | Rebuked by Imprinter 19302 | -6/Zion | Given A8's code to call for help 19531 | -6/Zion | Enhanced Grunt warped into view, answering call for help 19539 | -6/Zion | Enhanced Grunt warped into view, answering call for help 19552 | -6/Zion | Saw the warning signs outside the Deep Caves entrance 19559 | -6/Zion | Entered Deep Caves 19559 | -6/Deep Caves | Accompanied by 2 allies 19651 | -6/Deep Caves | Attacked by Z-Imprinter 19664 | -6/Deep Caves | Allies destroyed Z-Imprinter 19772 | -6/Deep Caves | Build established: Scavenger-Mutant 19833 | -6/Deep Caves | Z-Facility disabled 19873 | -6/Deep Caves | Found Prototype Protection 19873 | -6/Deep Caves | Identified Zio. Weapon Casing 19895 | -6/Deep Caves | Found Zio. Weapon Casing 19965 | -6/Deep Caves | Found Prototype Protection 19994 | -6/Deep Caves | Found Zio. Weapon Casing 20068 | -6/Deep Caves | Found Zio. Weapon Casing 20275 | -6/Deep Caves | Found Prototype Protection 20331 | -6/Deep Caves | Found Prototype Protection 20362 | -6/Deep Caves | Identified Zio. Heavy Carapace (x3) 20777 | -6/Deep Caves | Discovered new exit (range 6) 21178 | -6/Deep Caves | Spotted AG-72014 21195 | -6/Deep Caves | Destroyed AG-72014 21298 | -6/Deep Caves | Spotted AG-78787 21310 | -6/Deep Caves | Destroyed AG-78787 21381 | -6/Deep Caves | Triggered Deep Caves wall 21381 | -6/Deep Caves | Spotted AS-21101 21381 | -6/Deep Caves | Spotted AS-37054 21399 | -6/Deep Caves | Destroyed AS-37054 21417 | -6/Deep Caves | Destroyed AS-21101 21448 | -6/Deep Caves | Destroyed 39 combat bots 21804 | -6/Deep Caves | Identified Hacking Drone Bay 22073 | -6/Deep Caves | Found Prototype Device 22073 | -6/Deep Caves | Identified Exp. Thermal Shield 22094 | -6/Deep Caves | Exposed GOLEM chamber 22098 | -6/Deep Caves | Found GOLEM Unit 22103 | -6/Deep Caves | Found GOLEM Unit 22108 | -6/Deep Caves | Found GOLEM Unit 22113 | -6/Deep Caves | Found GOLEM Unit 22401 | -6/Deep Caves | Build established: Scavenger-Golem 22779 | -6/Deep Caves | Build established: Golem 23104 | -6/Deep Caves | Entered Proximity Caves 23910 | -5/Proximity Caves | Spotted B-75 Beast 23929 | -5/Proximity Caves | Destroyed B-75 Beast 23986 | -5/Proximity Caves | Discovered new exit (range 11) 24363 | -5/Proximity Caves | Entered Factory 24363 | -5/Factory | Evolved 2 slots: Utility x2 24365 | -5/Factory | Loaded intel: 4 garrison access locations 24762 | -5/Factory | Discovered new exit (range 15) 24787 | -5/Factory | Discovered new exit (range 15) 24968 | -5/Factory | Entered Extension 25484 | -5/Extension | Rescued A7 25800 | -5/Extension | Build established: Commander-Golem 25902 | -5/Extension | Spotted B-75 Beast 25911 | -5/Extension | Destroyed B-75 Beast 25932 | -5/Extension | Spotted B-75 Beast 25941 | -5/Extension | Destroyed B-75 Beast 25999 | -5/Extension | Lost 7 allies 26244 | -5/Extension | Build established: Golem 26638 | -5/Extension | Build established: Commander-Golem 26768 | -5/Extension | First assault squad dispatched 26848 | -5/Extension | Discovered new exit (range 10) 26851 | -5/Extension | Discovered new exit (range 6) 26862 | -5/Extension | Lost 4 allies 26902 | -5/Extension | Entered Cetus 26902 | -5/Cetus | Accompanied by 3 allies (A7) 26907 | -5/Cetus | Acquired a Cetus Manufacturing Module code from A7 26931 | -5/Cetus | Spotted Cetus Guard 26931 | -5/Cetus | Spotted Cetus Guard 26934 | -5/Cetus | Spotted Cetus Guard 26935 | -5/Cetus | Spotted Cetus Guard 26939 | -5/Cetus | Allies destroyed Cetus Guard 26940 | -5/Cetus | Allies destroyed Cetus Guard 26951 | -5/Cetus | Allies destroyed Cetus Guard 26957 | -5/Cetus | Allies destroyed Cetus Guard 27075 | -5/Cetus | Escorted A7 to Cetus Mainframe 27093 | -5/Cetus | Started Cetus Manufacturing Module 27118 | -5/Cetus | Manufactured an Enhanced Grunt 27118 | -5/Cetus | Discovered new exit (range 15) 27143 | -5/Cetus | Manufactured an Enhanced Grunt 27145 | -5/Cetus | Build established: Golem 27168 | -5/Cetus | Manufactured an Enhanced Grunt 27193 | -5/Cetus | Manufactured an Enhanced Grunt 27218 | -5/Cetus | Manufactured an Enhanced Grunt 27257 | -5/Cetus | Entered Archives 27257 | -5/Archives | Accompanied by 7 allies (A7) 27262 | -5/Archives | Received a hacking code to weaken MAIN.C 27460 | -5/Archives | Build established: Commander-Golem 27612 | -5/Archives | Discovered new exit (range 16) 27635 | -5/Archives | Discovered new exit (range 14) 29405 | -5/Archives | Entered Hub_04(d) 29405 | -5/Hub_04(d) | Accompanied by 6 allies 29842 | -5/Hub_04(d) | Network Hub disabled 29915 | -5/Hub_04(d) | Discovered new exit (range 15) 29945 | -5/Hub_04(d) | Spotted Lightning 29946 | -5/Hub_04(d) | Spotted Lightning 29950 | -5/Hub_04(d) | Spotted Lightning 29954 | -5/Hub_04(d) | Spotted Lightning 29955 | -5/Hub_04(d) | Discovered new exit (range 9) 29955 | -5/Hub_04(d) | Entered Factory 29955 | -4/Factory | Accompanied by 1 ally 29955 | -4/Factory | Evolved 2 slots: Utility x2 30108 | -4/Factory | Build established: Golem 30791 | -4/Factory | Identified exit to Upper Caves 30822 | -4/Factory | Identified exit to Research 31687 | -4/Factory | Entered Upper Caves 31710 | -4/Upper Caves | Attracted the attention of an 0b10 checkpoint 32265 | -4/Upper Caves | Discovered new exit (range 6) 32376 | -4/Upper Caves | Learned location of 1 exit from Upper Caves 32404 | -4/Upper Caves | Build established: Scavenger-Golem 32459 | -4/Upper Caves | Entered another Upper Caves area 32460 | -4/Upper Caves | Identified exit to Warlord 32552 | -4/Upper Caves | Learned Research stockpile data 32721 | -4/Upper Caves | Attracted the attention of an 0b10 checkpoint 32825 | -4/Upper Caves | Entered Warlord 32892 | -4/Warlord | System corruption cleaned by Quarantine Array 33461 | -4/Warlord | Warlord's base attacked by MAIN.C 33475 | -4/Warlord | Found Prototype Energy Cannon 33475 | -4/Warlord | Identified Vortex Cannon 33478 | -4/Warlord | Found Prototype Energy Cannon 33478 | -4/Warlord | Identified Vortex Driver 33497 | -4/Warlord | Found Vortex Driver 33632 | -4/Warlord | Found Prototype Device 33632 | -4/Warlord | Identified Minesniffer Drone Bay 33811 | -4/Warlord | Warlord forces counterattacked 33830 | -4/Warlord | P-70 Sage assimilated allied Assassin 7a 33879 | -4/Warlord | Lost 11 allies 33898 | -4/Warlord | Met Warlord 33928 | -4/Warlord | Spotted Striker 33988 | -4/Warlord | Lost 14 allies 34002 | -4/Warlord | Spotted Striker 34019 | -4/Warlord | Destroyed Striker 34042 | -4/Warlord | Spotted Executioner 34069 | -4/Warlord | Lost 6 parts (2n3u1w) 34072 | -4/Warlord | Spotted Striker 34075 | -4/Warlord | Spotted Striker 34078 | -4/Warlord | Destroyed 16 combat bots 34092 | -4/Warlord | Discovered new exit (range 12) 34111 | -4/Warlord | Entered Proximity Caves 34121 | -3/Proximity Caves | Lost 5 parts (1n3u1w) 34284 | -3/Proximity Caves | Build established: Golem 34963 | -3/Proximity Caves | Attracted the attention of an 0b10 checkpoint 35017 | -3/Proximity Caves | Spotter reported a threat 35115 | -3/Proximity Caves | Spotter reported a threat 35285 | -3/Proximity Caves | Discovered exit to Research (range 15) 35331 | -3/Proximity Caves | Entered Research 35331 | -3/Research | Evolved 2 slots: Power x1, Utility x1 35731 | -3/Research | Destroyed 11 combat bots 35869 | -3/Research | First assault squad dispatched 36033 | -3/Research | Spotted B-86 Titan 36164 | -3/Research | System corruption reached 10% 36177 | -3/Research | Core integrity fell below 50% 36226 | -3/Research | Lost 21 parts (1p4n10u6w) 36254 | -3/Research | Core integrity fell below 20% 36275 | -3/Research | Destroyed by S-43 Plague with Heavy Machine Gun Last Messages --------------- 36263_ R-10 Processor collects Wheel. 36264_ Dropped Zio. Biocell. 36264_ Slug penetrates Wall. 36265_ Extracted 600 energy. 36265_ K-01 Serf collects debris. 36266_ R-10 Processor collects Terrain Scanner. 36267_ Acquired Zio. Biocell. 36267_ Proton Cannon destroyed. 36268_ GOLEM Unit destroyed. 36268_ K-01 Serf collects debris. 36269_ Penetrated by Slug. 36269_ Slug penetrates Wall. 36270_ R-10 Processor collects Wheel. 36271_ Dropped Zio. Biocell. 36272_ Wall collapses. 36272_ Extracted 600 energy. 36272_ K-01 Serf collects debris. 36273_ Penetrated by Slug. 36274_ Nova Cannon destroyed. 36275_ Slug penetrates Wall. Map ----- +----------------------------------------------------+ | ?????????????????????????????????????????????????? | | ?????????????????????????????????????????????????? | | ?????????????????????????????????????????????????? | | ?????????????????????????????????????????????????? | | ?????????????????????????????????????????????????? | | ?????????????????????????????????????????????????? | | ?????????????????????????????????????????????????? | | ?????????????????????????????????????????????????? | | ?????????????????????????????????????????????????? | | ?????????????????????????????????????????????????? | | ???????????????????w?????????????????????????????? | | ???????????????????w?????????????????????????????? | | ?????????????????????????????????????????????????? | | ?????????????????????????????????????????????????? | | ?????????????????????######??????????????????????? | | ???????????????????? !!!#??????????????????????? | | ????????????????? !! #??????????????????????? | | ?????????????# """t u!! #??????????????????????? | | ?????????????# """ #??????????????????????? | | ?????????????? """ #??????????????????????? | | ?????????? ?#? "" #??????????????????????? | | ?????????? ! # """ ##?????????????????????? | | ????????? # """ *R" #?????????????????????? | | ???????? + " t "[" #??#???????????????????? | | ???????? # sss= # #???????????????????? | | ???????? # % k %u=h= @; #????????????????????? | | ???????? #*%* s !uh!!%# #???????????????????? | | ???????????####+####+###################?????????? | | ???????????# # =!%==!%| ?????????? | | ????????????# [%!=!==! ????????? | | ????????????### !%= | ????????? | | ????????? ww !%= ????????? | | ??????????##+ ## ####################??????????? | | ??????????? ??### #??????????? | | ?????????? ?????# #??????????? | | ??????????? ??????# #??????????? | | ???????#????????##?# #??????????? | | ????#????#???? #??# #??????????? | | #???????????? ?????# ]] p # ????#???# | | ?????#?????????#???# ]] p #? ? ?#???## | | ????#??##?#??????### ] ! !#??? ?##??#? | | #?????#?#?#?????####""###"##"#####+#### ???##???? | | ????#????#?#?#?#?# ! ? ?? ?#####?? | | #???##??#?#####?## = ? #?????# | | ###???###"######## ###?### | | ?#?##?### %/% # "" ? ? ??##?#?# | | #####?### % =% " % " ##?####?###?## | | ##?####?# """* # ? # ? ? | | #?##??### """ %#%% %% ? # ? | | ###?##### """" / ###"? | +----------------------------------------------------+ Best States ------------- Heat Dissipation 119 Energy Generation 67 Energy Capacity 1325 Matter Stores 300 Matter Capacity 300 Sight Range 18 Robot Scan Range 15 Terrain Scan Range 24 Terrain Scan Density 210 Additional Mass Support 20 Armor Coverage 3200 Resistance: KI 20 Resistance: TH 30 Resistance: EX 15 Resistance: EM 15 Resistance: I 15 Resistance: S 15 Resistance: P 15 Weapon Shielding 100 Phase Shifting 15 Evasion (%) 63 Targeting Accuracy 8 Core Analysis 8 Recoil Reduction 4 Particle Charging 25 Item Schematics ----------------- Hcp. Storage Unit | -10/Materials | Hacked Huge Storage Unit | -10/Materials | Hacked Arm. Wheel | -9/Materials | Hacked Imp. Sensor Array | -9/Materials | Scanalyzed Adv. Targeting Computer | -9/Materials | Scanalyzed Cooling System | -9/Materials | Scanalyzed Adv. Beam Cannon | -9/Materials | Scanalyzed Hcp. Matter Pod | -8/Materials | Scanalyzed Hvy. Ion Engine | -8/Materials | Scanalyzed Rocket Launcher | -8/Materials | Scanalyzed Imp. Signal Interpreter | -8/Materials | Hacked Remote Shield | -8/Storage | Hacked Hvy. Missile Launcher | -8/Storage | Hacked Imp. System Shield | -8/Recycling | Hacked Hacking Suite | -8/Recycling | Hacked Hvy. Armor Plating | -8/Recycling | Hacked Hvy. Rocket Launcher | -6/Factory | Scanalyzed Imp. System Restoration Module | -6/Factory | Scanalyzed Thermal Shield | -6/Zion | Archive Hyp. Coil Gun | -6/Zion | Archive System Guard | -6/Zion | Archive Fission Core | -6/Zion | Archive Adv. Signal Interpreter | -6/Zion | Archive Hvy. Shock Bomb Launcher | -6/Zion | Archive Imp. Remote Datajack | -6/Zion | Archive Hvy. Gauss Cannon | -6/Zion | Archive Wave Gun | -6/Zion | Archive Imp. Particle Charger | -6/Zion | Archive Adv. Shield Generator | -6/Zion | Archive Magnetic Acceleration Cannon | -6/Zion | Archive Imp. Launcher Guidance Computer | -6/Zion | Archive Imp. Medium Treads | -6/Zion | Archive Mak. Terrain Scanner | -6/Zion | Archive HERF Cannon | -6/Zion | Archive Robot Schematics ------------------ X-67 Chaingunner | -6/Zion | Archive R-10 Processor | -6/Zion | Archive Fabricated ------------ Nothing Alien Tech Used ----------------- None Achievements -------------- None Challenges ------------ None Game ------ Seed SupersonicArchitectMultirail Manual? 0 Play Time 05:08:02 Cumulative 163.7 hours Start 2024.05.21 @ 00:20:33 End 2024.05.21 @ 05:49:41 Sessions 1 Manual Loads 0 Difficulty Rogue Special Mode None Game No. 87 Rogue 87 Adventurer 0 Explorer 0 Win Type - Total 6 Types 3/0/2/1/0/0/0/0/0 Lore% 61 Gallery% 80 Achievement% 57 Wizard Run 0 Options --------- Layout 2 ASCII 0 Keyboard 1 Movement Numpad Keybinds 0 Fullscreen 2 Font 32/Tamsyn Map View 50x44 Zoom Use 0% Tactical HUD 1 Map Filters NONE Filters NONE Steam 1 RUN: 605bd127-923d-46da-80e8-4f8618c0d093